fUSD/lending_fUSD_20241118
["ID","MTS","AMOUNT","RATE_DAILY","PERIOD"]
[342490568,1731922253947,-500.0,9.999e-05,2]
[342490569,1731922253957,-367.36057876,9.999e-05,2]
[342490570,1731922253967,-500.0,9.999e-05,2]
[342490571,1731922253976,-500.0,9.999e-05,2]
[342490572,1731922253985,-500.0,9.999e-05,2]
[342490573,1731922253995,-500.0,9.999e-05,2]
[342490574,1731922254005,-500.0,9.999e-05,2]
[342490575,1731922254015,-500.0,9.999e-05,2]
[342490576,1731922254024,-579.68509709,9.999e-05,2]
[342490577,1731922254034,-234.85508298,9.999e-05,2]
[342490578,1731922254047,-500.0,9.999e-05,2]
[342490579,1731922254056,-500.0,9.999e-05,2]
[342490580,1731922254066,-500.0,9.999e-05,2]
[342490581,1731922254075,-500.0,9.999e-05,2]
[342490582,1731922254086,-500.0,9.999e-05,2]
[342490583,1731922254095,-500.0,9.999e-05,2]
[342490584,1731922254105,-500.0,9.999e-05,2]
[342490585,1731922254117,-500.0,9.999e-05,2]
[342490586,1731922254127,-500.0,9.999e-05,2]
[342490587,1731922254137,-154.7,9.999e-05,2]
[342490588,1731922254151,-500.0,9.999e-05,2]
[342490589,1731922254160,-500.0,9.999e-05,2]
[342490590,1731922254170,-262.24,9.999e-05,2]
[342490591,1731922254179,-500.0,9.999e-05,2]
[342490592,1731922254189,-500.0,9.999e-05,2]
[342490593,1731922254199,-500.0,9.999e-05,2]
[342490594,1731922254208,-500.0,9.999e-05,2]
[342490595,1731922254218,-500.0,9.999e-05,2]
[342490596,1731922254228,-500.0,9.999e-05,2]
[342490597,1731922254237,-500.0,9.999e-05,2]
[342490598,1731922254247,-500.0,9.999e-05,2]
[342490599,1731922254258,-500.0,9.999e-05,2]
[342490600,1731922254267,-500.0,9.999e-05,2]
[342490601,1731922254277,-500.0,9.999e-05,2]
[342490602,1731922254286,-500.0,9.999e-05,2]
[342490603,1731922254296,-500.0,9.999e-05,2]
[342490604,1731922254305,-365.7,9.999e-05,2]
[342490605,1731922254315,-500.0,9.999e-05,2]
[342490606,1731922254324,-500.0,9.999e-05,2]
[342490607,1731922254335,-503.54926439,9.999e-05,2]
[342490608,1731922254344,-504.2573839,9.999e-05,2]
[342490609,1731922254354,-500.0,9.999e-05,2]
[342490610,1731922254364,-500.0,9.999e-05,2]
[342490611,1731922254373,-500.0,9.999e-05,2]
[342490612,1731922254382,-500.0,9.999e-05,2]
[342490613,1731922254391,-500.0,9.999e-05,2]
[342490614,1731922254401,-500.0,9.999e-05,2]
[342490615,1731922254411,-500.0,9.999e-05,2]
[342490616,1731922254419,-500.0,9.999e-05,2]
[342490617,1731922254428,-500.0,9.999e-05,2]
[342490618,1731922254438,-500.0,9.999e-05,2]
[342490619,1731922254447,-500.0,9.999e-05,2]
[342490620,1731922254455,-500.0,9.999e-05,2]
[342490621,1731922254465,-500.0,9.999e-05,2]
[342490622,1731922254474,-295.7,9.999e-05,2]
[342490623,1731922254483,-500.0,9.999e-05,2]
[342490624,1731922254492,-500.0,9.999e-05,2]
[342490625,1731922254501,-500.0,9.999e-05,2]
[342490626,1731922254512,-500.0,9.999e-05,2]
[342490627,1731922254522,-500.0,9.999e-05,2]
[342490628,1731922254531,-500.0,9.999e-05,2]
[342490629,1731922254541,-500.0,9.999e-05,2]
[342490630,1731922254550,-500.0,9.999e-05,2]
[342490631,1731922254560,-500.0,9.999e-05,2]
[342490632,1731922254569,-500.0,9.999e-05,2]
[342490633,1731922254578,-500.0,9.999e-05,2]
[342490634,1731922254587,-500.0,9.999e-05,2]
[342490635,1731922254596,-500.0,9.999e-05,2]
[342490636,1731922254607,-500.0,9.999e-05,2]
[342490637,1731922254616,-500.0,9.999e-05,2]
[342490638,1731922254626,-500.0,9.999e-05,2]
[342490639,1731922254635,-500.0,9.999e-05,2]
[342490640,1731922254645,-500.0,9.999e-05,2]
[342490641,1731922254655,-500.0,9.999e-05,2]
[342490642,1731922254664,-500.0,9.999e-05,2]
[342490643,1731922254675,-500.0,9.999e-05,2]
[342490644,1731922254685,-500.0,9.999e-05,2]
[342490645,1731922254694,-633.70883277,9.999e-05,2]
[342490646,1731922254703,-500.0,9.999e-05,2]
[342490647,1731922254712,-500.0,9.999e-05,2]
[342490648,1731922254721,-500.0,9.999e-05,2]
[342490649,1731922254730,-500.0,9.999e-05,2]
[342490650,1731922254739,-500.0,9.999e-05,2]
[342490651,1731922254748,-500.0,9.999e-05,2]
[342490652,1731922254759,-500.0,9.999e-05,2]
[342490653,1731922254768,-500.0,9.999e-05,2]
[342490654,1731922254777,-500.0,9.999e-05,2]
[342490655,1731922254786,-500.0,9.999e-05,2]
[342490656,1731922254795,-500.0,9.999e-05,2]
[342490657,1731922254804,-500.0,9.999e-05,2]
[342490658,1731922254813,-500.0,9.999e-05,2]
[342490659,1731922254822,-500.0,9.999e-05,2]
[342490660,1731922254831,-500.0,9.999e-05,2]
[342490661,1731922254840,-500.0,9.999e-05,2]
[342490662,1731922254848,-500.0,9.999e-05,2]
[342490663,1731922254858,-529.12799596,9.999e-05,2]
[342490664,1731922254867,-273.31,9.999e-05,2]
[342490665,1731922254876,-500.0,9.999e-05,2]
[342490666,1731922254886,-465.51449673,9.999e-05,2]
[342490667,1731922254896,-500.0,9.999e-05,2]
[342490668,1731922254905,-500.0,9.999e-05,2]
[342490669,1731922254915,-500.0,9.999e-05,2]
[342490670,1731922254924,-500.0,9.999e-05,2]
[342490671,1731922254934,-500.0,9.999e-05,2]
[342490672,1731922254944,-500.0,9.999e-05,2]
[342490673,1731922254953,-500.0,9.999e-05,2]
[342490674,1731922254962,-500.0,9.999e-05,2]
[342490675,1731922254971,-500.0,9.999e-05,2]
[342490676,1731922254983,-500.0,9.999e-05,2]
[342490677,1731922254992,-345.86347186,9.999e-05,2]
[342490678,1731922255005,-500.0,9.999e-05,2]
[342490679,1731922255014,-500.0,9.999e-05,2]
[342490680,1731922255024,-500.0,9.999e-05,2]
[342490681,1731922255033,-500.0,9.999e-05,2]
[342490682,1731922255046,-500.0,9.999e-05,2]
[342490683,1731922255055,-500.0,9.999e-05,2]
[342490684,1731922255065,-3784.55,9.999e-05,2]
[342490685,1731922255075,-3784.55,9.999e-05,2]
[342490686,1731922255085,-3784.55,9.999e-05,2]
[342490687,1731922255094,-3784.55,9.999e-05,2]
[342490688,1731922255103,-3784.55,9.999e-05,2]
[342490689,1731922255115,-3784.55,9.999e-05,2]
[342490690,1731922255123,-3784.55,9.999e-05,2]
[342490691,1731922255133,-3784.55,9.999e-05,2]
[342490692,1731922255143,-3784.55,9.999e-05,2]
[342490693,1731922255152,-3784.55,9.999e-05,2]
[342490694,1731922255162,-3784.55,9.999e-05,2]
[342490695,1731922255172,-3784.55,9.999e-05,2]
[342490696,1731922255181,-3784.55,9.999e-05,2]
[342490697,1731922255191,-3784.55,9.999e-05,2]
[342490698,1731922255200,-3784.55,9.999e-05,2]
[342490699,1731922255209,-3784.55,9.999e-05,2]
[342490700,1731922255219,-3784.55,9.999e-05,2]
[342490701,1731922255229,-3784.55,9.999e-05,2]
[342490702,1731922255240,-3784.77369669,9.999e-05,2]
[342490703,1731922255250,-500.0,9.999e-05,2]
[342490704,1731922255261,-500.0,9.999e-05,2]
[342490705,1731922255270,-500.0,9.999e-05,2]
[342490706,1731922255279,-500.0,9.999e-05,2]
[342490707,1731922255288,-500.0,9.999e-05,2]
[342490708,1731922255298,-500.0,9.999e-05,2]
[342490709,1731922255308,-488.72,9.999e-05,2]
[342490710,1731922255318,-947.34,9.999e-05,2]
[342490711,1731922255327,-947.34,9.999e-05,2]
[342490712,1731922255337,-947.34,9.999e-05,2]
[342490713,1731922255347,-947.34,9.999e-05,2]
[342490714,1731922255357,-947.34,9.999e-05,2]
[342490715,1731922255367,-947.34,9.999e-05,2]
[342490716,1731922255376,-947.34,9.999e-05,2]
[342490717,1731922255385,-947.34,9.999e-05,2]
[342490718,1731922255395,-947.34,9.999e-05,2]
[342490719,1731922255403,-947.34,9.999e-05,2]
[342490720,1731922255413,-947.34,9.999e-05,2]
[342490721,1731922255422,-947.34,9.999e-05,2]
[342490722,1731922255431,-947.34,9.999e-05,2]
[342490723,1731922255440,-947.34,9.999e-05,2]
[342490724,1731922255449,-947.34,9.999e-05,2]
[342490725,1731922255458,-947.34,9.999e-05,2]
[342490726,1731922255467,-947.34,9.999e-05,2]
[342490727,1731922255476,-947.34,9.999e-05,2]
[342490728,1731922255485,-947.34,9.999e-05,2]
[342490729,1731922255494,-947.34,9.999e-05,2]
[342490730,1731922255504,-947.34,9.999e-05,2]
[342490731,1731922255514,-947.46120783,9.999e-05,2]
[342490732,1731922255523,-264.92103699,9.999e-05,2]
[342490733,1731922255532,-770.0,9.999e-05,2]
[342490734,1731922255541,-770.0,9.999e-05,2]
[342490735,1731922255550,-770.0,9.999e-05,2]
[342490736,1731922255559,-770.0,9.999e-05,2]
[342490737,1731922255568,-770.0,9.999e-05,2]
[342490738,1731922255577,-770.0,9.999e-05,2]
[342490739,1731922255586,-770.0,9.999e-05,2]
[342490740,1731922255595,-770.0,9.999e-05,2]
[342490741,1731922255604,-770.0,9.999e-05,2]
[342490742,1731922255613,-770.0,9.999e-05,2]
[342490743,1731922255622,-770.0,9.999e-05,2]
[342490744,1731922255632,-770.0,9.999e-05,2]
[342490745,1731922255641,-770.0,9.999e-05,2]
[342490746,1731922255650,-770.0,9.999e-05,2]
[342490747,1731922255659,-770.0,9.999e-05,2]
[342490748,1731922255668,-770.0,9.999e-05,2]
[342490749,1731922255676,-770.0,9.999e-05,2]
[342490750,1731922255685,-770.0,9.999e-05,2]
[342490751,1731922255695,-770.05,9.999e-05,2]
[342490752,1731922255703,-500.0,9.999e-05,2]
[342490753,1731922255713,-500.0,9.999e-05,2]
[342490754,1731922255722,-500.0,9.999e-05,2]
[342490755,1731922255731,-500.0,9.999e-05,2]
[342490756,1731922255740,-500.0,9.999e-05,2]
[342490757,1731922255749,-500.0,9.999e-05,2]
[342490758,1731922255761,-500.0,9.999e-05,2]
[342490759,1731922255770,-279.85,9.999e-05,2]
[342490760,1731922255779,-554.26,9.999e-05,2]
[342490761,1731922255788,-554.26,9.999e-05,2]
[342490762,1731922255798,-554.26,9.999e-05,2]
[342490763,1731922255807,-554.26,9.999e-05,2]
[342490764,1731922255815,-554.26,9.999e-05,2]
[342490765,1731922255824,-554.26,9.999e-05,2]
[342490766,1731922255834,-554.26,9.999e-05,2]
[342490767,1731922255843,-554.26,9.999e-05,2]
[342490768,1731922255852,-554.26,9.999e-05,2]
[342490769,1731922255862,-554.26,9.999e-05,2]
[342490770,1731922255871,-554.26,9.999e-05,2]
[342490771,1731922255881,-554.26,9.999e-05,2]
[342490772,1731922255890,-554.26,9.999e-05,2]
[342490773,1731922255899,-554.26,9.999e-05,2]
[342490774,1731922255909,-554.26,9.999e-05,2]
[342490775,1731922255918,-554.26,9.999e-05,2]
[342490776,1731922255927,-554.26,9.999e-05,2]
[342490777,1731922255936,-554.26,9.999e-05,2]
[342490778,1731922255946,-554.42,9.999e-05,2]
[342490779,1731922255955,-500.0,9.999e-05,2]
[342490780,1731922255965,-500.0,9.999e-05,2]
[342490781,1731922255975,-500.0,9.999e-05,2]
[342490782,1731922255984,-500.0,9.999e-05,2]
[342490783,1731922255994,-500.0,9.999e-05,2]
[342490784,1731922256005,-500.0,9.999e-05,2]
[342490785,1731922256015,-500.0,9.999e-05,2]
[342490786,1731922256024,-500.0,9.999e-05,2]
[342490787,1731922256035,-500.0,9.999e-05,2]
[342490788,1731922256049,-500.0,9.999e-05,2]
[342490789,1731922256058,-500.0,9.999e-05,2]
[342490790,1731922256067,-486.2,9.999e-05,2]
[342490791,1731922256078,-500.0,9.999e-05,2]
[342490792,1731922256087,-522.32,9.999e-05,2]
[342490793,1731922256096,-500.0,9.999e-05,2]
[342490794,1731922256107,-500.0,9.999e-05,2]
[342490795,1731922256119,-500.0,9.999e-05,2]
[342490796,1731922256128,-500.0,9.999e-05,2]
[342490797,1731922256138,-364.61548537,9.999e-05,2]
[342490798,1731922256148,-500.0,9.999e-05,2]
[342490799,1731922256157,-500.0,9.999e-05,2]
[342490800,1731922256167,-500.0,9.999e-05,2]
[342490801,1731922256176,-500.0,9.999e-05,2]
[342490802,1731922256186,-500.0,9.999e-05,2]
[342490803,1731922256196,-500.0,9.999e-05,2]
[342490804,1731922256206,-500.0,9.999e-05,2]
[342490805,1731922256215,-500.0,9.999e-05,2]
[342490806,1731922256225,-500.0,9.999e-05,2]
[342490807,1731922256235,-500.0,9.999e-05,2]
[342490808,1731922256245,-500.0,9.999e-05,2]
[342490809,1731922256255,-500.0,9.999e-05,2]
[342490810,1731922256265,-500.0,9.999e-05,2]
[342490811,1731922256275,-500.0,9.999e-05,2]
[342490812,1731922256285,-377.64,9.999e-05,2]
[342490813,1731922256294,-683.3,9.999e-05,2]
[342490814,1731922256304,-683.3,9.999e-05,2]
[342490815,1731922256314,-683.3,9.999e-05,2]
[342490816,1731922256323,-683.3,9.999e-05,2]
[342490817,1731922256332,-683.3,9.999e-05,2]
[342490818,1731922256342,-683.3,9.999e-05,2]
[342490819,1731922256352,-683.3,9.999e-05,2]
[342490820,1731922256362,-683.3,9.999e-05,2]
[342490821,1731922256372,-683.3,9.999e-05,2]
[342490822,1731922256382,-683.3,9.999e-05,2]
[342490823,1731922256392,-683.3,9.999e-05,2]
[342490824,1731922256401,-683.3,9.999e-05,2]
[342490825,1731922256411,-683.3,9.999e-05,2]
[342490826,1731922256421,-683.3,9.999e-05,2]
[342490827,1731922256431,-683.3,9.999e-05,2]
[342490828,1731922256441,-683.3,9.999e-05,2]
[342490829,1731922256451,-683.3,9.999e-05,2]
[342490830,1731922256461,-683.3,9.999e-05,2]
[342490831,1731922256470,-683.5,9.999e-05,2]
[342490832,1731922256480,-500.0,9.999e-05,2]
[342490833,1731922256490,-500.0,9.999e-05,2]
[342490834,1731922256500,-500.0,9.999e-05,2]
[342490835,1731922256514,-500.0,9.999e-05,2]
[342490836,1731922256523,-500.0,9.999e-05,2]
[342490837,1731922256532,-500.0,9.999e-05,2]
[342490838,1731922256541,-500.0,9.999e-05,2]
[342490839,1731922256550,-500.0,9.999e-05,2]
[342490840,1731922256560,-500.0,9.999e-05,2]
[342490841,1731922256570,-500.0,9.999e-05,2]
[342490842,1731922256580,-500.0,9.999e-05,2]
[342490843,1731922256589,-500.0,9.999e-05,2]
[342490844,1731922256599,-168.64,9.999e-05,2]
[342490845,1731922256610,-628.87,9.999e-05,2]
[342490846,1731922256619,-628.87,9.999e-05,2]
[342490847,1731922256630,-628.87,9.999e-05,2]
[342490848,1731922256639,-628.87,9.999e-05,2]
[342490849,1731922256649,-628.87,9.999e-05,2]
[342490850,1731922256659,-628.87,9.999e-05,2]
[342490851,1731922256668,-628.87,9.999e-05,2]
[342490852,1731922256678,-628.87,9.999e-05,2]
[342490853,1731922256688,-628.87,9.999e-05,2]
[342490854,1731922256698,-628.87,9.999e-05,2]
[342490855,1731922256707,-628.87,9.999e-05,2]
[342490856,1731922256717,-628.87,9.999e-05,2]
[342490857,1731922256726,-628.87,9.999e-05,2]
[342490858,1731922256736,-628.87,9.999e-05,2]
[342490859,1731922256745,-628.87,9.999e-05,2]
[342490860,1731922256755,-628.87,9.999e-05,2]
[342490861,1731922256764,-628.87,9.999e-05,2]
[342490862,1731922256773,-628.87,9.999e-05,2]
[342490863,1731922256783,-628.87,9.999e-05,2]
[342490864,1731922256792,-629.08528491,9.999e-05,2]
[342490865,1731922256801,-500.0,9.999e-05,2]
[342490866,1731922256811,-500.0,9.999e-05,2]
[342490867,1731922256827,-500.0,9.999e-05,2]
[342490868,1731922256837,-500.0,9.999e-05,2]
[342490869,1731922256847,-644.36856984,9.999e-05,2]
[342490870,1731922256859,-500.0,9.999e-05,2]
[342490871,1731922256870,-500.0,9.999e-05,2]
[342490872,1731922256879,-500.0,9.999e-05,2]
[342490873,1731922256889,-500.0,9.999e-05,2]
[342490874,1731922256899,-500.0,9.999e-05,2]
[342490875,1731922256908,-513.45099863,9.999e-05,2]
[342490876,1731922256918,-500.0,9.999e-05,2]
[342490877,1731922256927,-500.0,9.999e-05,2]
[342490878,1731922256936,-649.68,9.999e-05,2]
[342490879,1731922256946,-500.0,9.999e-05,2]
[342490880,1731922256955,-500.0,9.999e-05,2]
[342490881,1731922256964,-500.0,9.999e-05,2]
[342490882,1731922256974,-500.0,9.999e-05,2]
[342490883,1731922256983,-500.0,9.999e-05,2]
[342490884,1731922256992,-500.0,9.999e-05,2]
[342490885,1731922257002,-500.0,9.999e-05,2]
[342490886,1731922257014,-500.0,9.999e-05,2]
[342490887,1731922257028,-500.0,9.999e-05,2]
[342490888,1731922257038,-228.33932241,9.999e-05,2]
[342490889,1731922257052,-500.0,9.999e-05,2]
[342490890,1731922257061,-500.0,9.999e-05,2]
[342490891,1731922257071,-500.0,9.999e-05,2]
[342490892,1731922257080,-500.0,9.999e-05,2]
[342490893,1731922257091,-500.0,9.999e-05,2]
[342490894,1731922257101,-500.0,9.999e-05,2]
[342490895,1731922257110,-500.0,9.999e-05,2]
[342490896,1731922257120,-500.0,9.999e-05,2]
[342490897,1731922257131,-500.0,9.999e-05,2]
[342490898,1731922257141,-500.0,9.999e-05,2]
[342490899,1731922257150,-180.18,9.999e-05,2]
[342490900,1731922257159,-500.0,9.999e-05,2]
[342490901,1731922257170,-383.55317521,9.999e-05,2]
[342490902,1731922257699,-116.44682479,9.999e-05,2]
[342490903,1731922257709,-500.0,9.999e-05,2]
[342490904,1731922257718,-500.0,9.999e-05,2]
[342490905,1731922257727,-500.0,9.999e-05,2]
[342490906,1731922257737,-181.5420082,9.999e-05,2]
[342490907,1731922257751,-318.4579918,9.999e-05,2]
[342490908,1731922257761,-244.85527728,9.999e-05,2]
[342490909,1731922257772,-255.14472272,9.999e-05,2]
[342490910,1731922257781,-173.47469435,9.999e-05,2]
[342490911,1731922257793,-326.52530565,9.999e-05,2]
[342490912,1731922257803,-416.21165267,9.999e-05,2]
[342490913,1731922257812,-81.77563479,9.999e-05,2]
[342490914,1731922257823,-418.22436521,9.999e-05,2]
[342490915,1731922257832,-222.24,9.999e-05,2]
[342490916,1731922257842,-500.0,9.999e-05,2]
[342490917,1731922257851,-500.0,9.999e-05,2]
[342490918,1731922257860,-115.71461243,9.999e-05,2]
[342490919,1731922257871,-384.28538757,9.999e-05,2]
[342490920,1731922257880,-279.58,9.999e-05,2]
[342490921,1731922257890,-21.98676755,9.999e-05,2]
[342490922,1731922257973,-500.0,9.891e-05,2]
[342490923,1731922257983,-478.01323245,9.999e-05,2]
[342490924,1731922257992,-500.0,9.999e-05,2]
[342490925,1731922258002,-500.0,9.999e-05,2]
[342490926,1731922258014,-500.0,9.999e-05,2]
[342490927,1731922258024,-500.0,9.999e-05,2]
[342490928,1731922258033,-500.0,9.999e-05,2]
[342490929,1731922258047,-500.0,9.999e-05,2]
[342490930,1731922258056,-500.0,9.999e-05,2]
[342490931,1731922258066,-500.0,9.999e-05,2]
[342490932,1731922258076,-240.12,9.999e-05,2]
[342490933,1731922258087,-500.0,9.999e-05,2]
[342490934,1731922258096,-500.0,9.999e-05,2]
[342490935,1731922258105,-284.16121359,9.999e-05,2]
[342490936,1731922258118,-10.53313527,9.999e-05,2]
[342490937,1731922258128,-390.49186473,9.999e-05,2]
[342490938,1731922258144,-166.55813527,9.999e-05,2]
[342490939,1731922258153,-557.05,9.999e-05,2]
[342490940,1731922258163,-205.64217757,9.999e-05,2]
[342490941,1731922258175,-351.40782243,9.999e-05,2]
[342490942,1731922258184,-173.96768762,9.999e-05,2]
[342490943,1731922258196,-383.08231238,9.999e-05,2]
[342490944,1731922258205,-417.91768762,9.999e-05,2]
[342490945,1731922258232,-139.13231238,9.999e-05,2]
[342490946,1731922258242,-557.05,9.999e-05,2]
[342490947,1731922258252,-557.05,9.999e-05,2]
[342490948,1731922258263,-557.05,9.999e-05,2]
[342490949,1731922258273,-557.05,9.999e-05,2]
[342490950,1731922258282,-557.05,9.999e-05,2]
[342490951,1731922258292,-557.05,9.999e-05,2]
[342490952,1731922258302,-557.05,9.999e-05,2]
[342490953,1731922258311,-557.05,9.999e-05,2]
[342490954,1731922258321,-557.05,9.999e-05,2]
[342490955,1731922258331,-557.05,9.999e-05,2]
[342490956,1731922258340,-557.05,9.999e-05,2]
[342490957,1731922258350,-557.05,9.999e-05,2]
[342490958,1731922258359,-557.25,9.999e-05,2]
[342490959,1731922258368,-500.0,9.999e-05,2]
[342490960,1731922258377,-500.0,9.999e-05,2]
[342490961,1731922258387,-249.77683673,9.999e-05,2]
[342490962,1731922258396,-230.35,9.999e-05,2]
[342490963,1731922258406,-500.0,9.999e-05,2]
[342490964,1731922258415,-500.0,9.999e-05,2]
[342490965,1731922258425,-500.0,9.999e-05,2]
[342490966,1731922258434,-500.0,9.999e-05,2]
[342490967,1731922258443,-500.0,9.999e-05,2]
[342490968,1731922258453,-28.79826576,9.999e-05,2]
[342490969,1731922258464,-471.20173424,9.999e-05,2]
[342490970,1731922258474,-500.0,9.999e-05,2]
[342490971,1731922258483,-500.0,9.999e-05,2]
[342490972,1731922258493,-500.0,9.999e-05,2]
[342490973,1731922258503,-500.0,9.999e-05,2]
[342490974,1731922258513,-500.0,9.999e-05,2]
[342490975,1731922258523,-500.0,9.999e-05,2]
[342490976,1731922258532,-500.0,9.999e-05,2]
[342490977,1731922258541,-500.0,9.999e-05,2]
[342490978,1731922258551,-500.0,9.999e-05,2]
[342490979,1731922258560,-442.26099684,9.999e-05,2]
[342490980,1731922258570,-3781.27212292,0.0001,2]
[342490981,1731922258599,-5307.1221132,0.0001,2]
[342490982,1731922258610,-1382.04,0.0001,2]
[342490983,1731922258621,-5840.98262635,0.0001,2]
[342490984,1731922258641,-3065.67141362,0.0001,2]
[342490985,1731922258701,300.0,9e-05,3]
[342490986,1731922258756,-3593.76743703,0.0001,2]
[342490987,1731922258768,-4243.04015577,0.0001,2]
[342490988,1731922258779,-4741.23228299,0.0001,2]
[342490989,1731922258790,-3009.63330417,0.0001,2]
[342490990,1731922258801,-382.178985,0.0001,2]
[342490991,1731922258812,-742.0532403,0.0001,2]
[342490992,1731922258823,-2000.0,0.0001,2]
[342490993,1731922258834,-9631.4658,0.0001,2]
[342490994,1731922258845,-1338.4259,0.0001,2]
[342490995,1731922258856,-2669.75122909,0.0001,2]
[342490996,1731922258867,-5953.37555649,0.0001,2]
[342490997,1731922258878,-6015.34952181,0.0001,2]
[342490998,1731922258889,-1846.40544,0.0001,2]
[342490999,1731922258926,600.0,9.1e-05,3]
[342491000,1731922258938,-7601.80521746,0.0001,2]
[342491001,1731922258949,-50153.50804096,0.0001,2]
[342491002,1731922258961,-29019.66875087,0.0001,2]
[342491003,1731922258970,-5395.2631617,0.0001,2]
[342491004,1731922258979,-40703.06732743,0.0001,2]
[342491005,1731922258991,-50040.52021231,0.0001,2]
[342491006,1731922259175,1000.0,9.2e-05,3]
[342491007,1731922259211,-362.49,9.078e-05,2]
[342491008,1731922259221,-428.91010941,0.0001,2]
[342491009,1731922259232,-5745.5001,0.0001,2]
[342491010,1731922259247,-2848.71463,0.0001,2]
[342491011,1731922259259,-6736.6473,0.0001,2]
[342491012,1731922259270,-2042.3655,0.0001,2]
[342491013,1731922259282,-4608.09116096,0.0001,2]
[342491014,1731922259294,-9205.8588,0.0001,2]
[342491015,1731922259306,-864.14123207,0.0001,2]
[342491016,1731922259318,-18330.72345766,0.0001,2]
[342491017,1731922259334,-14621.6668356,0.0001,2]
[342491018,1731922259345,-2768.05506,0.0001,2]
[342491019,1731922259465,1300.0,9.3e-05,3]
[342491020,1731922259591,1700.0,9.4e-05,3]
[342491021,1731922260069,300.0,9.5e-05,3]
[342491022,1731922260199,300.0,9.6e-05,3]
[342491023,1731922260286,300.0,9.7e-05,3]
[342491024,1731922260401,300.0,9.8e-05,3]
[342491025,1731922260629,834.0,9.9e-05,3]
[342491028,1731922278228,800.0,9e-05,3]
[342491029,1731922279739,700.0,8.22e-05,2]
[342491030,1731922282729,1600.0,9.1e-05,3]
[342491031,1731922284851,2400.0,9.2e-05,3]
[342491032,1731922286967,3200.0,9.3e-05,3]
[342491033,1731922289090,4000.0,9.4e-05,3]
[342491034,1731922291182,800.0,9.5e-05,3]
[342491035,1731922293281,800.0,9.6e-05,3]
[342491036,1731922295380,800.0,9.7e-05,3]
[342491037,1731922297497,800.0,9.8e-05,3]
[342491038,1731922299898,1013.0,9.9e-05,3]
[342491051,1731922604003,-11557.0,0.000107,5]
[342491052,1731922620560,11557.0,0.000107,5]
[342491055,1731922652019,11557.0,0.000107,5]
[342491060,1731922683466,11557.0,0.000107,5]
[342491061,1731922715801,3772.0,0.000107,5]
[342491062,1731922801337,1463.02,8.219e-05,2]
[342491064,1731922906307,44920.61333117,0.00011818,21]
[342491360,1731923431377,-600.0,8.566e-05,2]
[342491361,1731923431387,-528.21222497,8.566e-05,2]
[342491362,1731923431401,-71.78777503,8.566e-05,2]
[342491363,1731923431411,-500.0,8.566e-05,2]
[342491364,1731923431420,-51.47222497,8.807e-05,2]
[342491365,1731923431436,-198.52777503,8.807e-05,2]
[342491366,1731923431446,-250.0,8.823e-05,2]
[342491367,1731923431456,-165.8,8.861e-05,2]
[342491368,1731923431466,-250.0,8.873e-05,2]
[342491369,1731923431476,-726.42,8.89e-05,2]
[342491370,1731923431486,-150.0,8.932e-05,2]
[342491371,1731923431495,-162.31,8.938e-05,2]
[342491372,1731923431506,-506.68,8.951e-05,2]
[342491373,1731923431516,-162.31,8.961e-05,2]
[342491374,1731923431525,-162.31,8.983e-05,2]
[342491375,1731923431535,-150.56,9.178e-05,2]
[342491376,1731923431544,-803.27,9.178e-05,2]
[342491377,1731923431553,-150.0,9.378e-05,2]
[342491378,1731923431562,-1000.0,9.529e-05,2]
[342491379,1731923431571,-700.0,9.59e-05,2]
[342491380,1731923431580,-1886.91,9.67e-05,2]
[342491381,1731923431590,-2500.382,9.791e-05,2]
[342491382,1731923431601,-1319.63179686,9.791e-05,2]
[342491383,1731923431617,-735.21862819,9.791e-05,2]